bitfinex/quotes_BTCUSD_20250414
["timestamp","ask_amount","ask_price","bid_price","bid_amount"]
[1744672179844,0.00444199,84467.0,84465.0,0.248621]
[1744672180083,0.00444199,84467.0,84466.0,0.236781]
[1744672180473,0.011837,84477.0,84472.0,0.011838]
[1744672180694,0.248588,84477.0,84473.0,0.236762]
[1744672181452,0.248588,84477.0,84474.0,0.236759]
[1744672181852,0.002,84475.0,84470.0,0.011838]
[1744672181985,0.236767,84471.0,84469.0,0.248608]
[1744672183242,0.236767,84471.0,84468.0,0.248613]
[1744672184168,0.0044504,84470.0,84468.0,0.248613]
[1744672184377,0.2412234,84470.0,84462.0,0.24863]
[1744672184581,0.236775,84469.0,84465.0,0.24862]
[1744672184795,0.00806681,84469.0,84466.0,0.011839]
[1744672184920,0.00806681,84469.0,84468.0,0.236776]
[1744672186013,0.011837,84479.0,84477.0,0.23675]
[1744672186244,0.15503708,84478.0,84475.0,0.248591]
[1744672186485,0.23675,84477.0,84475.0,0.248591]
[1744672186683,0.011837,84476.0,84471.0,0.236765]
[1744672186862,0.011838,84471.0,84468.0,0.248614]
[1744672187065,0.0044504,84470.0,84469.0,0.236773]
[1744672187268,0.01252333,84470.0,84469.0,0.236773]
[1744672188100,0.01252333,84470.0,84468.0,0.248614]
[1744672188308,0.01352333,84470.0,84468.0,0.248614]
[1744672188535,0.01352333,84470.0,84469.0,0.236773]
[1744672189104,0.01352333,84470.0,84468.0,0.248614]
[1744672189503,0.01252333,84470.0,84468.0,0.248614]
[1744672192671,0.01252333,84470.0,84469.0,0.236773]
[1744672193918,0.01352333,84470.0,84469.0,0.236773]
[1744672200422,0.001,84470.0,84469.0,0.236773]
[1744672201154,0.001,84470.0,84467.0,0.236778]
[1744672201335,0.001,84470.0,84469.0,0.236773]
[1744672201695,0.001,84470.0,84467.0,0.248615]
[1744672201887,0.0054504,84470.0,84467.0,0.248615]
[1744672202192,0.01354981,84470.0,84467.0,0.248615]
[1744672202698,0.01254981,84470.0,84467.0,0.248615]
[1744672202868,0.24932181,84470.0,84467.0,0.248615]
[1744672203830,0.236773,84469.0,84465.0,0.248623]
[1744672204029,0.236773,84469.0,84466.0,0.23678]
[1744672204566,0.011838,84469.0,84467.0,0.236777]
[1744672204782,0.248612,84469.0,84466.0,0.248619]
[1744672205171,0.248612,84469.0,84467.0,0.236778]
[1744672205735,0.26115781,84470.0,84467.0,0.236778]
[1744672206709,0.26115781,84470.0,84468.0,0.236776]
[1744672206937,0.01254981,84470.0,84469.0,0.236773]
[1744672207303,0.011837,84477.0,84475.0,0.236755]
[1744672208033,0.13876,84478.0,84477.0,0.23675]
[1744672209313,0.003,84478.0,84477.0,0.23675]
[1744672210474,0.005,84478.0,84477.0,0.23675]
[1744672211488,0.005,84478.0,84477.0,0.40409154]
[1744672211720,0.005,84478.0,84477.0,0.45089154]
[1744672212426,0.002,84478.0,84477.0,0.45089154]
[1744672212655,0.002,84478.0,84477.0,0.33005]
[1744672212883,0.002,84478.0,84477.0,0.23975]
[1744672213328,0.01471986,84478.0,84477.0,0.23975]
[1744672213561,9.3e-07,84484.0,84483.0,0.236734]
[1744672214262,0.01272404,84484.0,84483.0,0.236734]
[1744672214480,9.3e-07,84484.0,84483.0,0.236734]
[1744672214685,9.3e-07,84484.0,84483.0,0.237734]
[1744672215161,0.01272404,84484.0,84483.0,0.001]
[1744672215632,0.01272404,84484.0,84483.0,0.002]
[1744672216707,0.01272404,84484.0,84483.0,0.238734]
[1744672228693,0.01272404,84484.0,84483.0,0.23595264]
[1744672229374,9.3e-07,84484.0,84483.0,0.23595264]
[1744672230149,9.3e-07,84484.0,84483.0,0.33171985]
[1744672230298,9.3e-07,84484.0,84483.0,0.32935264]
[1744672230704,9.3e-07,84484.0,84483.0,0.45019418]
[1744672231677,9.3e-07,84484.0,84483.0,0.86229418]
[1744672232559,9.3e-07,84484.0,84483.0,1.20229418]
[1744672232759,9.3e-07,84484.0,84483.0,1.21683503]
[1744672233275,9.3e-07,84484.0,84483.0,1.21983503]
[1744672233462,9.3e-07,84484.0,84483.0,1.22283503]
[1744672233663,9.3e-07,84484.0,84483.0,1.21783503]
[1744672234167,9.3e-07,84484.0,84483.0,1.22283503]
[1744672234642,9.3e-07,84484.0,84483.0,1.23083503]
[1744672240513,0.0008448,84518.0,84517.0,0.236638]
[1744672240713,0.0013061,84518.0,84517.0,0.236638]
[1744672241656,0.0013061,84518.0,84512.0,0.248482]
[1744672241657,0.011831,84517.0,84514.0,0.011832]
[1744672241982,0.2379411,84518.0,84516.0,0.236641]
[1744672242158,0.0013061,84518.0,84516.0,0.236641]
[1744672242754,0.0023061,84518.0,84516.0,0.236641]
[1744672243162,0.2389421,84518.0,84515.0,0.011832]
[1744672243361,0.248479,84514.0,84510.0,0.236653]
[1744672243562,0.0465,84513.0,84510.0,0.248485]
[1744672243779,0.0465,84513.0,84511.0,0.236652]
[1744672243979,0.0465,84513.0,84511.0,0.236655]
[1744672244605,0.0465,84513.0,84512.0,0.236652]
[1744672245012,0.0013061,84518.0,84517.0,0.236638]
[1744672246431,0.0023061,84518.0,84517.0,0.236638]
[1744672251842,0.0013061,84518.0,84517.0,0.236638]
[1744672255945,0.0013061,84518.0,84517.0,0.35747954]
[1744672256367,0.0013061,84518.0,84517.0,0.76957861]
[1744672259911,0.0013061,84518.0,84517.0,0.81617861]
[1744672261135,1e-07,84518.0,84517.0,0.82017861]
[1744672261667,1e-07,84518.0,84517.0,1.16017861]
[1744672262074,1e-07,84518.0,84517.0,1.16417861]
[1744672264029,1e-07,84518.0,84517.0,1.17871946]
[1744672264249,1e-07,84535.0,84534.0,0.576591]
[1744672264437,1e-07,84535.0,84534.0,1.10953161]
[1744672264438,3.7e-07,84535.0,84534.0,1.10953161]
[1744672265530,3.7e-07,84535.0,84534.0,1.11153161]
[1744672265936,3.7e-07,84535.0,84534.0,1.11353161]
[1744672268852,3.7e-07,84535.0,84534.0,1.12807246]
[1744672269055,3.7e-07,84535.0,84534.0,1.22227246]
[1744672269689,0.000844,84552.0,84551.0,0.329743]
[1744672269892,0.000844,84552.0,84551.0,0.86268324]
[1744672271799,0.000844,84552.0,84551.0,0.86568324]
[1744672272261,0.000844,84552.0,84551.0,0.87068324]
[1744672273519,0.000844,84552.0,84551.0,0.88260292]
[1744672273721,0.000844,84552.0,84551.0,1.22260292]
[1744672273922,0.00200021,84559.0,84558.0,0.236524]
[1744672274135,0.00200021,84559.0,84558.0,0.35736554]
[1744672274368,0.00200021,84559.0,84558.0,0.76946424]
[1744672274995,0.00200021,84559.0,84558.0,0.77246424]
[1744672275412,0.00200021,84559.0,84558.0,0.77746424]
[1744672275710,0.00200021,84559.0,84558.0,0.77446424]
[1744672275938,0.00200021,84559.0,84558.0,0.77746424]
[1744672277126,0.00200021,84559.0,84558.0,1.11746424]
[1744672286536,0.00200021,84559.0,84558.0,1.11246424]
[1744672287008,0.00200021,84559.0,84558.0,1.11746424]
[1744672287168,0.00200021,84559.0,84558.0,1.81446424]
[1744672287370,0.00200021,84559.0,84558.0,1.81746424]
[1744672294914,0.00200021,84559.0,84558.0,1.95590424]
[1744672296105,4.1e-07,84569.0,84564.0,0.34]
[1744672296240,4.1e-07,84569.0,84568.0,0.576496]
[1744672296435,0.00013863,84569.0,84568.0,0.69733754]
[1744672297930,0.00013863,84569.0,84568.0,1.40033754]
[1744672298595,0.00013863,84569.0,84568.0,1.40333754]
[1744672299194,0.00013863,84569.0,84568.0,1.40833754]
[1744672300373,0.00013863,84569.0,84568.0,1.82043624]
[1744672304358,0.00013863,84569.0,84568.0,1.12043624]
[1744672305363,0.00013863,84569.0,84568.0,1.11743624]
[1744672305570,0.00013863,84569.0,84568.0,1.10943624]
[1744672306287,0.00013863,84569.0,84568.0,1.11343624]
[1744672306672,0.00013863,84569.0,84568.0,1.11643624]
[1744672307459,0.00013863,84569.0,84568.0,1.11343624]
[1744672307661,0.00013863,84569.0,84568.0,1.10943624]
[1744672307917,0.00013863,84569.0,84568.0,1.11143624]
[1744672308126,0.00013863,84569.0,84568.0,1.11543624]
[1744672311381,0.00013863,84569.0,84568.0,1.11343624]
[1744672311730,0.00013863,84569.0,84568.0,1.11643624]
[1744672312021,0.00013863,84569.0,84568.0,1.11243624]
[1744672312583,0.00013863,84569.0,84568.0,1.11643624]
[1744672316312,6.3e-07,84569.0,84568.0,1.11643624]
[1744672316741,6.3e-07,84569.0,84568.0,1.11343624]
[1744672316930,6.3e-07,84569.0,84568.0,1.10943624]
[1744672317143,6.3e-07,84569.0,84568.0,1.11743624]
[1744672317578,6.3e-07,84569.0,84568.0,1.81443624]
[1744672317718,6.3e-07,84569.0,84568.0,1.81743624]
[1744672322367,6.3e-07,84569.0,84568.0,1.11743624]
[1744672325774,6.3e-07,84569.0,84568.0,0.77743624]
[1744672325982,6.3e-07,84569.0,84568.0,1.11743624]
[1744672326177,6.3e-07,84569.0,84568.0,0.77743624]
[1744672327028,6.3e-07,84569.0,84568.0,0.77243624]
[1744672327425,6.3e-07,84569.0,84568.0,0.77143624]
[1744672328638,6.3e-07,84569.0,84568.0,0.77343624]
[1744672353491,6.3e-07,84569.0,84568.0,0.4160987]
[1744672353696,0.01409276,84569.0,84568.0,0.6525947]
[1744672354542,0.01409276,84569.0,84568.0,0.77343624]
[1744672354765,6.3e-07,84569.0,84568.0,0.77143624]
[1744672355119,6.3e-07,84569.0,84568.0,0.77243624]
[1744672355853,6.3e-07,84569.0,84568.0,0.77043624]
[1744672356040,6.3e-07,84569.0,84568.0,1.11043624]
[1744672356218,6.3e-07,84569.0,84568.0,1.15693624]
[1744672356840,6.3e-07,84569.0,84568.0,1.15593624]
[1744672357221,6.3e-07,84569.0,84568.0,1.15993624]
[1744672357416,6.3e-07,84569.0,84568.0,1.16193624]
[1744672357844,6.3e-07,84569.0,84568.0,1.16393624]
[1744672358056,6.3e-07,84569.0,84568.0,1.22687709]
[1744672358302,6.3e-07,84569.0,84568.0,1.22987709]
[1744672358759,6.3e-07,84569.0,84568.0,1.92987709]
[1744672359113,6.3e-07,84569.0,84568.0,1.92187709]
[1744672359316,6.3e-07,84569.0,84568.0,1.92287709]
[1744672359562,6.3e-07,84569.0,84568.0,1.92687709]
[1744672359802,6.3e-07,84569.0,84568.0,1.92387709]
[1744672360130,6.3e-07,84569.0,84568.0,1.93087709]
[1744672360338,6.3e-07,84569.0,84568.0,1.93487709]
[1744672360878,6.3e-07,84569.0,84568.0,1.93087709]
[1744672361162,6.3e-07,84569.0,84568.0,1.93587709]
[1744672361369,0.0004221,84593.0,84586.0,0.011822]
[1744672361558,1e-06,84589.0,84588.0,0.57644]
[1744672361782,0.0004221,84593.0,84588.0,0.57644]
[1744672361783,1e-07,84593.0,84592.0,0.59096885]
[1744672361984,1e-07,84593.0,84592.0,0.76041039]
[1744672363064,1e-07,84593.0,84592.0,1.47199369]
[1744672363473,1e-07,84593.0,84592.0,1.47599369]
[1744672363668,1e-07,84593.0,84592.0,1.52109369]
[1744672364277,1e-07,84593.0,84592.0,1.51709369]
[1744672364683,1e-07,84593.0,84592.0,1.52109369]
[1744672365001,1e-07,84593.0,84592.0,1.52409369]
[1744672365325,1e-07,84593.0,84592.0,1.52509369]
[1744672367802,0.000422,84620.0,84600.0,0.01182]
[1744672368129,0.00130484,84603.0,84602.0,0.34]
[1744672368302,0.00130484,84603.0,84602.0,0.46084154]
[1744672369158,0.00130484,84603.0,84602.0,1.16084154]
[1744672369364,0.00130484,84603.0,84602.0,1.16284154]
[1744672369777,0.00130484,84603.0,84602.0,1.39924254]
[1744672370534,0.00130484,84603.0,84602.0,1.40024254]
[1744672373649,0.00130484,84603.0,84602.0,1.81234051]
[1744672378536,8.4e-07,84603.0,84602.0,1.12688136]
[1744672379934,8.4e-07,84603.0,84602.0,1.12588136]
[1744672380411,8.4e-07,84603.0,84602.0,1.12788136]
[1744672381601,8.4e-07,84603.0,84602.0,1.82788136]
[1744672384461,8.4e-07,84603.0,84602.0,1.81334051]
[1744672385770,0.04760084,84603.0,84602.0,1.81334051]
[1744672385994,0.04760084,84603.0,84602.0,1.11334051]
[1744672387472,0.04760084,84603.0,84602.0,0.65249897]
[1744672387677,0.09470084,84603.0,84602.0,0.65249897]
[1744672387922,0.10921046,84603.0,84602.0,0.65249897]
[1744672388535,0.10921046,84603.0,84602.0,0.64849897]
[1744672388948,0.34560846,84603.0,84602.0,0.41309797]
[1744672389147,0.34560846,84603.0,84602.0,0.001]
[1744672389358,0.34560846,84603.0,84590.0,0.011821]
[1744672389359,0.0972,84598.0,84594.0,0.248241]
[1744672389525,0.0482,84597.0,84594.0,0.248241]
[1744672389730,0.0482,84595.0,84594.0,0.248241]
[1744672390158,0.011821,84590.0,84579.0,0.011823]
[1744672390356,0.060022,84588.0,84582.0,0.948277]
[1744672390675,0.236446,84586.0,84583.0,0.248273]
[1744672391457,0.236456,84582.0,84579.0,0.248287]
[1744672391793,0.0047744,84582.0,84580.0,0.248284]
[1744672391999,0.248275,84584.0,84580.0,0.248284]
[1744672392199,0.01437026,84582.0,84581.0,0.64855697]
[1744672392331,0.236456,84582.0,84581.0,0.41209797]
[1744672392528,0.24605186,84582.0,84581.0,0.41709797]
[1744672392780,0.29295186,84582.0,84581.0,0.41709797]
[1744672392983,0.29295186,84582.0,84581.0,0.41509797]
[1744672393183,0.29295186,84582.0,84581.0,0.41409797]
[1744672393398,0.29295186,84582.0,84581.0,0.41309797]
[1744672394031,0.29295186,84582.0,84581.0,0.003]
[1744672395045,0.34085186,84582.0,84581.0,0.003]
[1744672395242,0.34562626,84582.0,84581.0,0.003]
[1744672395385,0.34562626,84582.0,84581.0,0.002]
[1744672396205,0.011823,84579.0,84574.0,0.011823]
[1744672396435,0.10917026,84582.0,84579.0,0.011823]
[1744672396636,0.248283,84581.0,84577.0,0.248292]
[1744672397398,0.236463,84580.0,84577.0,0.248292]
[1744672397539,0.248286,84580.0,84577.0,0.248292]
[1744672397745,0.0948,84582.0,84581.0,0.236459]
[1744672399647,0.0948,84582.0,84579.0,0.248288]
[1744672400256,0.0948,84582.0,84581.0,0.236459]
[1744672403643,0.0948,84582.0,84580.0,0.236462]
[1744672404100,0.0948,84582.0,84581.0,0.236459]
[1744672406741,0.331256,84582.0,84577.0,0.248293]
[1744672406964,0.236459,84581.0,84578.0,0.236466]
[1744672407190,0.248281,84581.0,84578.0,0.236466]
[1744672407411,0.011822,84581.0,84579.0,0.236463]
[1744672408041,0.331257,84582.0,84579.0,0.236463]
[1744672408450,0.0948,84582.0,84579.0,0.011823]
[1744672408572,0.0948,84582.0,84580.0,0.23646]
[1744672409943,0.00938153,84581.0,84580.0,0.23646]
[1744672414082,0.00938153,84581.0,84579.0,0.011823]
[1744672414302,0.24584053,84581.0,84579.0,0.248288]
[1744672414522,0.00938153,84581.0,84579.0,0.248288]
[1744672417656,0.24584053,84581.0,84579.0,0.248288]
[1744672418194,0.25766553,84581.0,84574.0,0.248301]
[1744672418431,0.011823,84579.0,84577.0,0.23647]
[1744672418852,0.00940975,84578.0,84577.0,0.23647]
[1744672419719,0.24587775,84578.0,84576.0,0.248296]
[1744672420361,0.236476,84575.0,84574.0,0.001]
[1744672420550,0.23649,84570.0,84565.0,0.011825]
[1744672420775,0.05912838,84570.0,84568.0,0.236493]
[1744672420912,0.05912838,84570.0,84567.0,0.011824]
[1744672421256,0.05912838,84570.0,84568.0,0.236493]
[1744672421456,0.29561838,84570.0,84561.0,0.236515]
[1744672421662,0.29561838,84570.0,84569.0,0.41255797]
[1744672421838,0.29561838,84570.0,84569.0,0.41555797]
[1744672422673,0.29561838,84570.0,84569.0,0.41255797]
[1744672423459,0.29561838,84570.0,84569.0,0.41355797]
[1744672423968,0.29561838,84570.0,84569.0,0.41455797]
[1744672426518,0.05912838,84570.0,84569.0,0.238953]
[1744672431273,0.00942838,84570.0,84569.0,0.238953]
[1744672431590,0.284276,84575.0,84572.0,0.236483]
[1744672431807,0.00930355,84574.0,84572.0,0.236483]
[1744672432227,0.24578355,84574.0,84571.0,0.248311]
[1744672433157,0.25760655,84574.0,84571.0,0.248311]
[1744672433352,0.236482,84573.0,84571.0,0.248311]
[1744672433570,0.00928278,84572.0,84571.0,0.248311]
[1744672433767,0.248303,84574.0,84571.0,0.248311]
[1744672434067,0.00928045,84573.0,84571.0,0.248311]
[1744672434359,0.00928045,84573.0,84572.0,0.236484]
[1744672434542,0.13776,84578.0,84577.0,0.23647]
[1744672434746,0.15179203,84578.0,84576.0,0.236473]
[1744672435121,0.16361503,84578.0,84575.0,0.011823]
[1744672435503,0.011823,84577.0,84574.0,0.236476]
[1744672437020,0.248294,84577.0,84574.0,0.236476]
[1744672438366,0.00475763,84576.0,84574.0,0.236476]
[1744672438775,0.15885181,84578.0,84575.0,0.011823]
[1744672438976,0.00476042,84577.0,84575.0,0.011823]
[1744672439180,0.00476042,84577.0,84575.0,0.248296]
[1744672439599,0.25305542,84577.0,84574.0,0.236476]
[1744672439797,0.00927346,84576.0,84574.0,0.236476]
[1744672440006,0.00927346,84576.0,84575.0,0.236476]
[1744672440161,0.00927346,84576.0,84574.0,0.236476]
[1744672440357,0.00927346,84576.0,84573.0,0.011824]
[1744672440563,0.00927346,84576.0,84575.0,0.236476]
[1744672441324,0.00927346,84576.0,84573.0,0.011824]
[1744672441824,0.00927346,84576.0,84575.0,0.236476]
[1744672442050,0.01403109,84576.0,84574.0,0.236479]
[1744672442186,0.26233009,84576.0,84573.0,0.011824]
[1744672442395,0.01403109,84576.0,84573.0,0.011824]
[1744672442746,0.01403109,84576.0,84574.0,0.236476]
[1744672443326,0.26233009,84576.0,84573.0,0.011824]
[1744672443612,0.236478,84575.0,84572.0,0.248306]
[1744672443774,0.00475203,84574.0,84572.0,0.248306]
[1744672445088,0.24123103,84574.0,84572.0,0.011824]
[1744672446151,0.00475203,84574.0,84572.0,0.011824]
[1744672446290,0.00475203,84574.0,84569.0,0.00046]
[1744672446502,0.011824,84572.0,84569.0,0.00046]
[1744672446724,0.00474364,84571.0,84569.0,0.00046]
[1744672447011,0.00474364,84571.0,84569.0,0.236952]
[1744672447564,0.00474364,84571.0,84570.0,0.23649]
[1744672447990,0.248306,84573.0,84570.0,0.23649]
[1744672448140,0.00474644,84572.0,84570.0,0.23649]
[1744672449645,0.00474644,84572.0,84571.0,0.236487]
[1744672450300,0.00474644,84572.0,84570.0,0.236489]
[1744672450736,0.01657044,84572.0,84570.0,0.236489]
[1744672450943,0.00474644,84572.0,84571.0,0.236487]
[1744672452307,0.25757246,84576.0,84573.0,0.236482]
[1744672452765,0.011823,84575.0,84572.0,0.011824]
[1744672452977,0.00927346,84576.0,84574.0,0.236477]
[1744672453159,0.13776,84587.0,84575.0,0.236476]
[1744672453355,0.13776,84587.0,84584.0,0.011822]
[1744672453553,0.0092734,84586.0,84584.0,0.248272]
[1744672453725,0.0210954,84586.0,84582.0,0.236456]
[1744672453929,0.0210954,84586.0,84575.0,0.011823]
[1744672453930,0.011823,84579.0,84575.0,0.011823]
[1744672454135,0.236484,84572.0,84568.0,0.011824]
[1744672454306,0.24580557,84572.0,84566.0,0.236501]
[1744672454504,0.24580557,84572.0,84568.0,0.248318]
[1744672454828,0.24580557,84572.0,84569.0,0.248774]
[1744672455025,0.24580557,84572.0,84569.0,0.012284]
[1744672455267,0.24580557,84572.0,84569.0,0.00046]
[1744672455740,0.25055201,84572.0,84569.0,0.00046]
[1744672458200,0.23649,84570.0,84569.0,0.00046]
[1744672458401,0.25055708,84570.0,84569.0,0.00046]
[1744672460102,0.25055708,84570.0,84569.0,0.00246]
[1744672463916,0.25055708,84570.0,84569.0,0.00146]
[1744672464517,0.25055708,84570.0,84569.0,0.00046]
[1744672467479,0.01406708,84570.0,84569.0,0.236953]
[1744672467871,0.011823,84574.0,84572.0,0.236483]
[1744672468600,0.0476,84578.0,84569.0,0.012284]
[1744672468838,0.059423,84578.0,84569.0,0.012284]
[1744672469068,0.248301,84575.0,84571.0,0.011824]
[1744672469302,0.236486,84572.0,84570.0,0.23649]
[1744672469641,0.236486,84572.0,84569.0,0.248776]
[1744672469842,0.00925868,84571.0,84570.0,0.23649]
[1744672470204,0.00925868,84571.0,84569.0,0.248776]
[1744672470599,0.24574668,84571.0,84569.0,0.012284]
[1744672471424,0.00472757,84570.0,84569.0,0.012284]
[1744672473454,0.00472757,84570.0,84569.0,0.00046]
[1744672474458,0.00472757,84570.0,84569.0,0.236953]
[1744672474667,0.00472757,84570.0,84569.0,0.00046]
[1744672474998,0.00472757,84570.0,84569.0,0.236953]
[1744672477464,0.011823,84575.0,84572.0,0.236484]
[1744672477642,0.011823,84575.0,84573.0,0.23648]
[1744672477843,0.01397031,84574.0,84573.0,0.23648]
[1744672478020,0.01397031,84574.0,84572.0,0.236484]
[1744672478637,0.25045031,84574.0,84572.0,0.236484]
[1744672478848,0.25045031,84574.0,84572.0,0.248308]
[1744672479460,0.01397031,84574.0,84572.0,0.248308]
[1744672479686,0.011824,84573.0,84570.0,0.011824]
[1744672479865,0.01397031,84574.0,84571.0,0.011824]
[1744672480065,0.011824,84573.0,84570.0,0.248314]
[1744672480384,0.23649,84570.0,84569.0,0.00046]
[1744672484799,0.24569767,84570.0,84569.0,0.00046]
[1744672494415,0.00920767,84570.0,84569.0,0.00046]
[1744672494601,0.236487,84571.0,84569.0,0.00046]
[1744672494857,0.01390044,84570.0,84569.0,0.00046]
[1744672495747,0.01390044,84570.0,84569.0,0.236953]
[1744672495900,0.01390044,84570.0,84569.0,0.00046]
[1744672496610,0.25039044,84570.0,84569.0,0.00046]
[1744672497018,0.01390044,84570.0,84569.0,0.00046]
[1744672497686,0.01390044,84570.0,84569.0,0.236953]
[1744672497826,0.01390044,84570.0,84569.0,0.00046]
[1744672499976,0.01390044,84570.0,84569.0,0.236953]
[1744672500611,0.13772,84578.0,84577.0,0.23647]
[1744672500746,0.236473,84577.0,84574.0,0.236479]
[1744672500942,0.13772,84578.0,84572.0,0.011824]
[1744672500943,0.23648,84574.0,84572.0,0.011824]
[1744672501158,0.248301,84575.0,84572.0,0.248306]
[1744672501789,0.236479,84574.0,84572.0,0.248306]
[1744672502098,0.248295,84577.0,84574.0,0.236479]
[1744672502268,0.236474,84576.0,84573.0,0.248306]
[1744672503140,0.248297,84576.0,84573.0,0.248306]
[1744672503706,0.248301,84575.0,84572.0,0.248303]
[1744672504107,0.248301,84575.0,84569.0,0.00046]
[1744672504108,0.236488,84571.0,84569.0,0.00046]
[1744672504371,0.248311,84572.0,84569.0,0.00046]
[1744672504548,0.00474085,84570.0,84569.0,0.00046]
[1744672504739,0.23649,84570.0,84569.0,0.00046]
[1744672504910,0.01393268,84570.0,84569.0,0.00046]
[1744672505111,0.01393268,84570.0,84569.0,0.236953]
[1744672505723,0.25042268,84570.0,84569.0,0.00046]
[1744672505913,0.01393268,84570.0,84569.0,0.00046]
[1744672506323,0.01393268,84570.0,84569.0,0.236953]
[1744672507099,0.011823,84575.0,84573.0,0.236481]
[1744672507419,0.34,84590.0,84583.0,0.011822]
[1744672507618,1.10628,84591.0,84588.0,0.011822]
[1744672507931,1.118101,84591.0,84585.0,0.011822]
[1744672508135,0.236441,84588.0,84584.0,0.248272]
[1744672508332,0.236448,84586.0,84584.0,0.236451]
[1744672508536,0.236448,84586.0,84583.0,0.24827]
[1744672508738,0.011822,84585.0,84582.0,0.236451]
[1744672508919,0.236449,84585.0,84582.0,0.248273]
[1744672509121,0.24827,84586.0,84583.0,0.236452]
[1744672509323,0.011822,84587.0,84584.0,0.236448]
[1744672509527,0.248265,84587.0,84584.0,0.236448]
[1744672510802,0.248265,84587.0,84584.0,0.24827]
[1744672511392,0.248262,84588.0,84585.0,0.24827]
[1744672511590,0.248262,84588.0,84586.0,0.236445]
[1744672511915,0.011822,84588.0,84586.0,0.236445]
[1744672512113,0.236435,84590.0,84588.0,0.236439]
[1744672512436,0.0491,84599.0,84591.0,0.236431]
[1744672512637,0.248237,84596.0,84592.0,0.236428]
[1744672512841,0.248242,84595.0,84592.0,0.236428]
[1744672513052,0.15170081,84593.0,84592.0,0.236428]
[1744672513988,0.23643,84592.0,84589.0,0.236436]
[1744672514147,0.248249,84592.0,84588.0,0.011822]
[1744672514486,0.39994981,84593.0,84588.0,0.24826]
[1744672514802,0.236432,84591.0,84588.0,0.24826]
[1744672515154,0.00920434,84590.0,84588.0,0.24826]
[1744672516503,0.00920434,84590.0,84589.0,0.236437]
[1744672517006,0.011821,84592.0,84589.0,0.236437]
[1744672517007,0.24825,84592.0,84589.0,0.236437]
[1744672517219,0.24825,84592.0,84589.0,0.248258]
[1744672518110,0.011821,84592.0,84590.0,0.236434]
[1744672518298,0.385969,84593.0,84590.0,0.236434]
[1744672519544,0.13772,84593.0,84592.0,0.236428]
[1744672520167,0.13768,84606.0,84595.0,0.236419]
[1744672520321,0.13768,84606.0,84594.0,0.011821]
[1744672520322,0.13768,84606.0,84605.0,0.248211]
[1744672520539,0.13768,84606.0,84602.0,0.248218]
[1744672520540,0.01405463,84605.0,84602.0,0.248218]
[1744672520907,0.01688784,84605.0,84602.0,0.248218]
[1744672521442,0.01702595,84605.0,84603.0,0.236397]
[1744672522076,0.00495928,84605.0,84603.0,0.236397]
[1744672523012,0.00495928,84605.0,84604.0,0.236395]
[1744672525273,0.00013811,84605.0,84604.0,0.236395]
[1744672528561,1.1e-07,84605.0,84604.0,0.35723654]
[1744672528744,1.1e-07,84605.0,84604.0,0.40253654]
[1744672529138,1.1e-07,84605.0,84604.0,0.41077059]
[1744672529688,1.1e-07,84605.0,84604.0,0.36547059]
[1744672530216,1.1e-07,84605.0,84604.0,0.35723654]
[1744672530917,1.1e-07,84605.0,84604.0,0.35823654]
[1744672531092,1.1e-07,84605.0,84604.0,0.36023654]
[1744672531889,1.1e-07,84605.0,84604.0,0.77233451]
[1744672535488,1.1e-07,84605.0,84604.0,0.65149297]
[1744672535697,1.1e-07,84605.0,84604.0,0.41509797]
[1744672535698,0.23639211,84605.0,84604.0,0.41509797]
[1744672536107,0.25067379,84605.0,84604.0,0.41509797]
[1744672536346,0.29777379,84605.0,84604.0,0.41409797]
[1744672536745,0.29777379,84605.0,84604.0,0.41509797]
[1744672536947,0.29777379,84605.0,84604.0,0.41309797]
[1744672537178,0.29777379,84605.0,84604.0,0.41209797]
[1744672537371,0.011821,84590.0,84586.0,0.011822]
[1744672537499,0.248257,84590.0,84587.0,0.011822]
[1744672537698,0.248257,84590.0,84587.0,0.248263]
[1744672537896,0.236437,84589.0,84587.0,0.011822]
[1744672538110,0.248258,84589.0,84586.0,0.011822]
[1744672538312,0.248258,84589.0,84582.0,0.248278]
[1744672538313,0.011822,84587.0,84580.0,0.236461]
[1744672538564,0.011822,84583.0,84580.0,0.248285]
[1744672539268,0.248275,84584.0,84580.0,0.248285]
[1744672539631,0.0047772,84583.0,84581.0,0.236459]
[1744672540016,0.0499,84590.0,84589.0,0.236437]
[1744672540258,0.05933011,84590.0,84589.0,0.236437]
[1744672541310,0.07134504,84590.0,84589.0,0.236437]
[1744672541839,0.00943011,84590.0,84589.0,0.236437]
[1744672542160,0.01182,84599.0,84595.0,0.23642]
[1744672542756,0.01182,84599.0,84594.0,0.236423]
[1744672542757,0.01182,84598.0,84594.0,0.236423]
[1744672543316,0.00479183,84595.0,84594.0,0.236423]
[1744672544734,0.01417234,84595.0,84594.0,0.236423]
[1744672545061,0.01417234,84595.0,84591.0,0.236429]
[1744672545478,0.236426,84593.0,84590.0,0.011821]
[1744672545617,0.236426,84593.0,84591.0,0.236431]
[1744672545814,0.00937818,84592.0,84591.0,0.236431]
[1744672546555,0.00937818,84592.0,84590.0,0.248254]
[1744672546762,0.26243053,84592.0,84589.0,0.236435]
[1744672547134,0.011821,84590.0,84584.0,0.24827]
[1744672547331,0.011822,84584.0,84578.0,0.41209797]
[1744672547567,0.0047772,84583.0,84582.0,0.248276]
[1744672547991,0.236445,84586.0,84582.0,0.248276]
[1744672548187,0.0047772,84583.0,84582.0,0.248276]
[1744672548398,0.248267,84586.0,84583.0,0.236452]
[1744672550412,0.00478279,84585.0,84584.0,0.236451]
[1744672552014,0.248243,84595.0,84592.0,0.236428]
[1744672552212,0.236424,84594.0,84592.0,0.236428]
[1744672552392,0.24574601,84594.0,84591.0,0.011821]
[1744672552591,0.236426,84593.0,84591.0,0.011821]
[1744672552944,0.00931503,84592.0,84591.0,0.011821]
[1744672553076,0.00931503,84592.0,84591.0,0.248252]
[1744672553276,0.14946,84596.0,84593.0,0.236423]
[1744672553481,0.00931968,84595.0,84593.0,0.248244]
[1744672553681,0.00931968,84595.0,84594.0,0.236423]
[1744672555242,0.00931968,84595.0,84593.0,0.248244]
[1744672555422,0.00931968,84595.0,84590.0,0.236432]
[1744672555423,0.248244,84594.0,84590.0,0.236432]
[1744672555616,0.248249,84593.0,84589.0,0.248256]
[1744672555821,0.248265,84587.0,84582.0,0.011822]